[Event "Live Chess"]
[Site "Chess.com"]
[Date "2024.06.02"]
[Round "-"]
[White "Crowded_House"]
[Black "A3ndrey9"]
[Result "0-1"]
[WhiteElo "1674"]
[BlackElo "1293"]
[TimeControl "300"]
[EndTime "2:23:22 PDT"]
[Termination "A3ndrey9 won by checkmate"]

1. d4 {[%clk 0:04:58.6]} 1... c6 {[%clk 0:04:59.7]} 2. c3 {[%clk 0:04:54.5]}
2... d5 {[%clk 0:04:56]} 3. Bg5 {[%clk 0:04:53.8]} 3... Nf6 {[%clk 0:04:49.2]}
4. e3 {[%clk 0:04:51.4]} 4... Bf5 {[%clk 0:04:46]} 5. Bd3 {[%clk 0:04:50.1]}
5... Bxd3 {[%clk 0:04:44.5]} 6. Qxd3 {[%clk 0:04:49.8]} 6... e6 {[%clk
0:04:43.7]} 7. Nd2 {[%clk 0:04:47.4]} 7... Be7 {[%clk 0:04:41.4]} 8. Ngf3 {[%clk
0:04:46.8]} 8... O-O {[%clk 0:04:37.4]} 9. O-O {[%clk 0:04:45.5]} 9... h6 {[%clk
0:04:36.6]} 10. Bh4 {[%clk 0:04:44.1]} 10... Nbd7 {[%clk 0:04:31.5]} 11. Rfe1
{[%clk 0:04:43.1]} 11... c5 {[%clk 0:04:30.4]} 12. dxc5 {[%clk 0:04:36.7]} 12...
Nxc5 {[%clk 0:04:28.7]} 13. Qe2 {[%clk 0:04:33.8]} 13... Nfe4 {[%clk 0:04:23.7]}
14. Bxe7 {[%clk 0:04:30.5]} 14... Qxe7 {[%clk 0:04:21.7]} 15. Nxe4 {[%clk
0:04:28.3]} 15... Nxe4 {[%clk 0:04:19.7]} 16. Nd2 {[%clk 0:04:27.2]} 16... Nxd2
{[%clk 0:04:14.9]} 17. Qxd2 {[%clk 0:04:25.9]} 17... Rac8 {[%clk 0:04:14.1]} 18.
Qd4 {[%clk 0:04:22.7]} 18... Qc5 {[%clk 0:04:09.7]} 19. Qxc5 {[%clk 0:04:20.8]}
19... Rxc5 {[%clk 0:04:08.5]} 20. Red1 {[%clk 0:04:20.1]} 20... a5 {[%clk
0:04:03.5]} 21. Rd4 {[%clk 0:04:17.7]} 21... b5 {[%clk 0:04:00.3]} 22. a3 {[%clk
0:04:12.8]} 22... a4 {[%clk 0:03:58]} 23. Rad1 {[%clk 0:04:10.8]} 23... Rd8
{[%clk 0:03:46.7]} 24. e4 {[%clk 0:04:08.8]} 24... Kf8 {[%clk 0:03:32.5]} 25.
exd5 {[%clk 0:04:02.2]} 25... Rdxd5 {[%clk 0:03:30.2]} 26. Rxd5 {[%clk
0:04:01.2]} 26... Rxd5 {[%clk 0:03:29.3]} 27. Rxd5 {[%clk 0:04:00.4]} 27... exd5
{[%clk 0:03:28.7]} 28. Kf1 {[%clk 0:03:59.8]} 28... Ke7 {[%clk 0:03:28.1]} 29.
Ke2 {[%clk 0:03:59.5]} 29... Kd6 {[%clk 0:03:27.5]} 30. Kd3 {[%clk 0:03:59.3]}
30... Kc5 {[%clk 0:03:24.2]} 31. f4 {[%clk 0:03:48.8]} 31... f5 {[%clk
0:02:58.7]} 32. h3 {[%clk 0:03:46.7]} 32... Kd6 {[%clk 0:02:21.3]} 33. Kd4
{[%clk 0:03:44.3]} 33... g6 {[%clk 0:02:02.1]} 34. g4 {[%clk 0:03:37.6]} 34...
fxg4 {[%clk 0:01:48.2]} 35. hxg4 {[%clk 0:03:36.1]} 35... h5 {[%clk 0:01:47.1]}
36. gxh5 {[%clk 0:03:25.1]} 36... gxh5 {[%clk 0:01:46.2]} 37. f5 {[%clk
0:03:21.2]} 37... h4 {[%clk 0:01:45.6]} 38. f6 {[%clk 0:03:19.6]} 38... h3
{[%clk 0:01:44.2]} 39. f7 {[%clk 0:03:16.7]} 39... Ke7 {[%clk 0:01:42.7]} 40.
Kxd5 {[%clk 0:03:13.2]} 40... h2 {[%clk 0:01:41.3]} 41. Kc5 {[%clk 0:03:13.1]}
41... h1=Q {[%clk 0:01:37.7]} 42. f8=Q+ {[%clk 0:03:12.5]} 42... Kxf8 {[%clk
0:01:36.2]} 43. Kxb5 {[%clk 0:03:12.3]} 43... Qd5+ {[%clk 0:01:34.4]} 44. Kxa4
{[%clk 0:03:11.2]} 44... Qc4+ {[%clk 0:01:31.7]} 45. Ka5 {[%clk 0:03:08.7]}
45... Ke7 {[%clk 0:01:30.9]} 46. a4 {[%clk 0:03:06]} 46... Kd6 {[%clk
0:01:24.5]} 47. b4 {[%clk 0:03:04.9]} 47... Qxc3 {[%clk 0:01:19.7]} 48. Kb5
{[%clk 0:03:01.8]} 48... Qd3+ {[%clk 0:01:17.8]} 49. Kb6 {[%clk 0:02:59.8]}
49... Qd4+ {[%clk 0:01:14.9]} 50. Kb5 {[%clk 0:02:57.7]} 50... Qd5+ {[%clk
0:01:13.5]} 51. Kb6 {[%clk 0:02:55.9]} 51... Qc6+ {[%clk 0:01:12.8]} 52. Ka5
{[%clk 0:02:54.5]} 52... Qa8+ {[%clk 0:01:10.6]} 53. Kb5 {[%clk 0:02:53.2]}
53... Kd5 {[%clk 0:01:07.6]} 54. a5 {[%clk 0:02:51]} 54... Qb7+ {[%clk 0:01:07]}
55. Ka4 {[%clk 0:02:50]} 55... Qc6+ {[%clk 0:01:01]} 56. Kb3 {[%clk 0:02:46.4]}
56... Qb5 {[%clk 0:00:58.2]} 57. Kc3 {[%clk 0:02:43.7]} 57... Qa4 {[%clk
0:00:53.1]} 58. a6 {[%clk 0:02:39.2]} 58... Qxa6 {[%clk 0:00:51.4]} 59. Kb3
{[%clk 0:02:38.9]} 59... Qb5 {[%clk 0:00:49.5]} 60. Kc3 {[%clk 0:02:38]} 60...
Qc4+ {[%clk 0:00:48]} 61. Kb2 {[%clk 0:02:36.8]} 61... Qxb4+ {[%clk 0:00:47.4]}
62. Kc2 {[%clk 0:02:36.5]} 62... Kc4 {[%clk 0:00:45.8]} 63. Kd1 {[%clk
0:02:35.2]} 63... Kd3 {[%clk 0:00:43.4]} 64. Kc1 {[%clk 0:02:32]} 64... Qa3+
{[%clk 0:00:41.7]} 65. Kb1 {[%clk 0:02:30.7]} 65... Qb3+ {[%clk 0:00:38.3]} 66.
Ka1 {[%clk 0:02:28.9]} 66... Qb4 {[%clk 0:00:30.3]} 67. Ka2 {[%clk 0:02:27.6]}
67... Kc2 {[%clk 0:00:28.3]} 68. Ka1 {[%clk 0:02:26.7]} 68... Qb2# {[%clk
0:00:27.8]} 0-1

[Event "Live Chess"]
[Site "Chess.com"]
[Date "2024.06.02"]
[Round "-"]
[White "WorcesterYork"]
[Black "Mikhail_Golubev"]
[Result "1-0"]
[WhiteElo "2482"]
[BlackElo "2511"]
[TimeControl "300"]
[EndTime "2:23:23 PDT"]
[Termination "WorcesterYork won on time"]

1. d4 {[%clk 0:04:58.1]} 1... Nf6 {[%clk 0:04:54.3]} 2. Bg5 {[%clk 0:04:57]}
2... d5 {[%clk 0:04:43.5]} 3. Nd2 {[%clk 0:04:55.5]} 3... e6 {[%clk 0:04:22.2]}
4. e3 {[%clk 0:04:52.3]} 4... c5 {[%clk 0:04:17.4]} 5. c3 {[%clk 0:04:51]} 5...
Nc6 {[%clk 0:04:13.8]} 6. f4 {[%clk 0:04:48.1]} 6... h6 {[%clk 0:04:02]} 7. Bxf6
{[%clk 0:04:45.2]} 7... Qxf6 {[%clk 0:03:54.7]} 8. Bd3 {[%clk 0:04:42.5]} 8...
g5 {[%clk 0:03:49.4]} 9. fxg5 {[%clk 0:04:32.8]} 9... hxg5 {[%clk 0:03:39.3]}
10. Qf3 {[%clk 0:04:29.8]} 10... Qxf3 {[%clk 0:03:33.7]} 11. Ngxf3 {[%clk
0:04:29.7]} 11... g4 {[%clk 0:03:29.8]} 12. Ng1 {[%clk 0:04:20.5]} 12... e5
{[%clk 0:02:58.3]} 13. Ne2 {[%clk 0:04:16.5]} 13... cxd4 {[%clk 0:02:44.5]} 14.
exd4 {[%clk 0:04:13.6]} 14... exd4 {[%clk 0:02:35.3]} 15. Nxd4 {[%clk
0:04:11.7]} 15... Nxd4 {[%clk 0:02:27.8]} 16. cxd4 {[%clk 0:04:11.6]} 16... Be6
{[%clk 0:02:22.3]} 17. Bb5+ {[%clk 0:04:09.1]} 17... Ke7 {[%clk 0:02:02]} 18.
Nb3 {[%clk 0:04:00.9]} 18... Bh6 {[%clk 0:01:50.3]} 19. O-O {[%clk 0:03:59]}
19... Be3+ {[%clk 0:01:26.1]} 20. Kh1 {[%clk 0:03:57.6]} 20... g3 {[%clk
0:01:25.2]} 21. h3 {[%clk 0:03:54.7]} 21... Rag8 {[%clk 0:01:23.9]} 22. Rf3
{[%clk 0:03:45.6]} 22... Bf2 {[%clk 0:01:06.5]} 23. Bf1 {[%clk 0:03:34.2]} 23...
Rh4 {[%clk 0:00:51.7]} 24. Rc1 {[%clk 0:03:24.8]} 24... Bxd4 {[%clk 0:00:38.8]}
25. Rc7+ {[%clk 0:03:18.7]} 25... Kd6 {[%clk 0:00:36.2]} 26. Rxb7 {[%clk
0:03:17.4]} 26... Bb6 {[%clk 0:00:31.6]} 27. Rc3 {[%clk 0:02:17.5]} 27... Rf4
{[%clk 0:00:24.3]} 28. Bb5 {[%clk 0:02:16]} 28... Bxh3 {[%clk 0:00:17.4]} 29.
Rc6+ {[%clk 0:02:14.9]} 29... Ke5 {[%clk 0:00:15.6]} 30. Rbxb6 {[%clk
0:01:58.9]} 30... axb6 {[%clk 0:00:15.5]} 31. Nd2 {[%clk 0:01:52.6]} 31... Bg4
{[%clk 0:00:12.6]} 32. Rc1 {[%clk 0:01:47.1]} 32... Rh8+ {[%clk 0:00:10.1]} 33.
Kg1 {[%clk 0:01:46]} 33... Rf6 {[%clk 0:00:07.9]} 34. Nf1 {[%clk 0:01:44.4]} 1-0

[Event "Live Chess"]
[Site "Chess.com"]
[Date "2024.06.02"]
[Round "-"]
[White "matt1979"]
[Black "Purple1szed"]
[Result "0-1"]
[WhiteElo "1407"]
[BlackElo "2080"]
[TimeControl "300"]
[EndTime "2:23:26 PDT"]
[Termination "Purple1szed won by resignation"]

1. f4 {[%clk 0:04:58.4]} 1... c5 {[%clk 0:04:56.8]} 2. Nf3 {[%clk 0:04:56.6]}
2... Nc6 {[%clk 0:04:56.5]} 3. e4 {[%clk 0:04:53.8]} 3... d5 {[%clk 0:04:54.6]}
4. e5 {[%clk 0:04:52.6]} 4... Bg4 {[%clk 0:04:52.9]} 5. Be2 {[%clk 0:04:50.9]}
5... e6 {[%clk 0:04:51.4]} 6. O-O {[%clk 0:04:49.5]} 6... Nge7 {[%clk
0:04:47.5]} 7. Qe1 {[%clk 0:04:47.3]} 7... Nf5 {[%clk 0:04:46.1]} 8. c3 {[%clk
0:04:44.6]} 8... d4 {[%clk 0:04:44.5]} 9. cxd4 {[%clk 0:04:41.1]} 9... Bxf3
{[%clk 0:04:42.8]} 10. Bxf3 {[%clk 0:04:39.7]} 10... Nfxd4 {[%clk 0:04:37.2]}
11. Na3 {[%clk 0:04:36.6]} 11... Be7 {[%clk 0:04:27.1]} 12. Qe4 {[%clk 0:04:30]}
12... Qd7 {[%clk 0:03:59.1]} 13. b3 {[%clk 0:04:25]} 13... O-O {[%clk
0:03:46.5]} 14. Bb2 {[%clk 0:04:22.4]} 14... Rfd8 {[%clk 0:03:43]} 15. Nc4
{[%clk 0:04:18.7]} 15... Rac8 {[%clk 0:03:34]} 16. Ne3 {[%clk 0:03:55.8]} 16...
b5 {[%clk 0:03:20.1]} 17. Nc2 {[%clk 0:03:53.6]} 17... Nxc2 {[%clk 0:03:14.2]}
18. Qxc2 {[%clk 0:03:51.3]} 18... Qxd2 {[%clk 0:03:12.8]} 19. Qxd2 {[%clk
0:03:47]} 19... Rxd2 {[%clk 0:03:12.7]} 20. Bc3 {[%clk 0:03:41.2]} 20... Rd7
{[%clk 0:03:02]} 21. Rad1 {[%clk 0:03:35.4]} 21... Nd4 {[%clk 0:02:54]} 22. Be4
{[%clk 0:03:25.8]} 22... b4 {[%clk 0:02:46.1]} 23. Bb2 {[%clk 0:03:23]} 23...
Rcd8 {[%clk 0:02:43.1]} 24. Bxd4 {[%clk 0:03:03.2]} 24... Rxd4 {[%clk
0:02:41.5]} 25. Bc2 {[%clk 0:02:59.6]} 25... f6 {[%clk 0:02:25.4]} 26. exf6
{[%clk 0:02:52.1]} 26... Bxf6 {[%clk 0:02:24.4]} 27. g3 {[%clk 0:02:43.3]} 27...
Kf7 {[%clk 0:02:21]} 28. Rxd4 {[%clk 0:02:40.9]} 28... Rxd4 {[%clk 0:02:19.7]}
29. Rd1 {[%clk 0:02:39.9]} 29... e5 {[%clk 0:02:15.4]} 30. fxe5 {[%clk
0:02:33.2]} 30... Bxe5 {[%clk 0:02:14.4]} 31. Rxd4 {[%clk 0:02:31.1]} 31... cxd4
{[%clk 0:02:12]} 32. Kg2 {[%clk 0:02:29.9]} 32... h6 {[%clk 0:02:08.5]} 33. Kf3
{[%clk 0:02:28.9]} 33... Ke6 {[%clk 0:02:07.6]} 34. Ke4 {[%clk 0:02:27.5]} 34...
Bf6 {[%clk 0:02:07.3]} 35. Bd3 {[%clk 0:02:25]} 35... a5 {[%clk 0:02:04.8]} 36.
h3 {[%clk 0:02:21.4]} 36... g6 {[%clk 0:01:56.2]} 37. g4 {[%clk 0:02:19.6]}
37... h5 {[%clk 0:01:53.8]} 38. gxh5 {[%clk 0:02:17.1]} 38... gxh5 {[%clk
0:01:53.7]} 39. Bc4+ {[%clk 0:02:14.4]} 39... Kd6 {[%clk 0:01:49.9]} 40. Kf5
{[%clk 0:02:11.5]} 40... Be7 {[%clk 0:01:47.4]} 41. Kg6 {[%clk 0:02:07]} 41...
Ke5 {[%clk 0:01:34.8]} 42. Kxh5 {[%clk 0:02:02.1]} 42... Ke4 {[%clk 0:01:34.1]}
43. Kg4 {[%clk 0:01:50.8]} 43... Ke3 {[%clk 0:01:32.3]} 44. h4 {[%clk 0:01:49]}
44... d3 {[%clk 0:01:20.1]} 45. Bd5 {[%clk 0:01:39.8]} 45... d2 {[%clk
0:01:10.9]} 46. Bf3 {[%clk 0:01:38.6]} 46... Bxh4 {[%clk 0:01:08.5]} 47. Bd1
{[%clk 0:01:26.7]} 47... Bd8 {[%clk 0:01:03.3]} 48. Kh3 {[%clk 0:01:22]} 48...
Kf2 {[%clk 0:01:02.5]} 49. Kg4 {[%clk 0:01:19]} 49... Ke1 {[%clk 0:01:02]} 50.
Bc2 {[%clk 0:01:18]} 50... d1=Q+ {[%clk 0:01:01.4]} 51. Bxd1 {[%clk 0:01:17.2]}
51... Kxd1 {[%clk 0:01:01.3]} 0-1

[Event "Live Chess"]
[Site "Chess.com"]
[Date "2024.06.02"]
[Round "-"]
[White "upoe610"]
[Black "TigerTank70"]
[Result "0-1"]
[WhiteElo "2141"]
[BlackElo "2232"]
[TimeControl "300"]
[EndTime "2:23:30 PDT"]
[Termination "TigerTank70 won - game abandoned"]

1. c4 {[%clk 0:04:57.4]} 1... e5 {[%clk 0:04:58.6]} 2. g3 {[%clk 0:04:56.4]}
2... Nc6 {[%clk 0:04:57.6]} 3. Bg2 {[%clk 0:04:55.7]} 3... Nf6 {[%clk
0:04:57.1]} 4. Nc3 {[%clk 0:04:54.4]} 4... Bb4 {[%clk 0:04:54.9]} 5. Nd5 {[%clk
0:04:53.1]} 5... Be7 {[%clk 0:04:52.7]} 6. d3 {[%clk 0:04:50.9]} 6... d6 {[%clk
0:04:50.3]} 7. a3 {[%clk 0:04:47.9]} 7... h5 {[%clk 0:04:49.1]} 8. e3 {[%clk
0:04:47]} 8... h4 {[%clk 0:04:47.9]} 9. Ne2 {[%clk 0:04:45.8]} 9... hxg3 {[%clk
0:04:44.2]} 10. hxg3 {[%clk 0:04:43.5]} 10... Rxh1+ {[%clk 0:04:42.2]} 11. Bxh1
{[%clk 0:04:43.4]} 11... Qd7 {[%clk 0:04:39.5]} 12. Nec3 {[%clk 0:04:41.7]}
12... Qh3 {[%clk 0:04:37.5]} 13. Qf3 {[%clk 0:04:40.4]} 13... Bg4 {[%clk
0:04:34.7]} 14. Qg2 {[%clk 0:04:39.4]} 14... Qxg2 {[%clk 0:04:24.8]} 15. Bxg2
{[%clk 0:04:38.5]} 15... O-O-O {[%clk 0:04:24.5]} 16. Bd2 {[%clk 0:04:37.4]}
16... Rh8 {[%clk 0:04:22.2]} 17. Kf1 {[%clk 0:04:24.8]} 17... Bd8 {[%clk
0:04:07.3]} 18. Kg1 {[%clk 0:04:22.9]} 18... Na5 {[%clk 0:04:04.3]} 0-1

[Event "Live Chess"]
[Site "Chess.com"]
[Date "2024.06.02"]
[Round "-"]
[White "vincents82"]
[Black "yarek"]
[Result "0-1"]
[WhiteElo "1984"]
[BlackElo "1756"]
[TimeControl "300"]
[EndTime "2:23:35 PDT"]
[Termination "yarek won by resignation"]

1. e4 {[%clk 0:04:57.6]} 1... g6 {[%clk 0:04:58]} 2. d4 {[%clk 0:04:56.6]} 2...
Bg7 {[%clk 0:04:57.6]} 3. Nc3 {[%clk 0:04:56]} 3... c6 {[%clk 0:04:56.8]} 4. Be3
{[%clk 0:04:54]} 4... d5 {[%clk 0:04:55.9]} 5. e5 {[%clk 0:04:52.7]} 5... h5
{[%clk 0:04:51.8]} 6. Qd2 {[%clk 0:04:51.2]} 6... Nh6 {[%clk 0:04:48.9]} 7.
O-O-O {[%clk 0:04:49.7]} 7... Nf5 {[%clk 0:04:45.6]} 8. f3 {[%clk 0:04:49.2]}
8... Nxe3 {[%clk 0:04:43.1]} 9. Qxe3 {[%clk 0:04:48.4]} 9... e6 {[%clk
0:04:35.9]} 10. Bd3 {[%clk 0:04:45.5]} 10... Nd7 {[%clk 0:04:30]} 11. Kb1 {[%clk
0:04:44.5]} 11... a6 {[%clk 0:04:25]} 12. f4 {[%clk 0:04:41.6]} 12... Qb6 {[%clk
0:04:15.4]} 13. h3 {[%clk 0:04:33.7]} 13... c5 {[%clk 0:04:14]} 14. Nce2 {[%clk
0:04:28.3]} 14... c4 {[%clk 0:04:08.5]} 15. Nf3 {[%clk 0:04:23.8]} 15... cxd3
{[%clk 0:04:06.1]} 16. Rxd3 {[%clk 0:04:23.1]} 16... Qc7 {[%clk 0:03:53.5]} 17.
Rf1 {[%clk 0:04:20.9]} 17... b5 {[%clk 0:03:45.5]} 18. g4 {[%clk 0:04:18.5]}
18... hxg4 {[%clk 0:03:43.1]} 19. hxg4 {[%clk 0:04:17]} 19... Nb6 {[%clk
0:03:41.8]} 20. f5 {[%clk 0:04:14.2]} 20... Nc4 {[%clk 0:03:39.6]} 21. Qg5
{[%clk 0:04:09]} 21... exf5 {[%clk 0:03:33.6]} 22. Nh4 {[%clk 0:03:51.3]} 22...
Qe7 {[%clk 0:03:05.7]} 23. Qxe7+ {[%clk 0:03:46]} 23... Kxe7 {[%clk 0:03:03.9]}
24. gxf5 {[%clk 0:03:45.4]} 24... Rxh4 {[%clk 0:02:49.1]} 25. f6+ {[%clk
0:03:44.4]} 25... Kf8 {[%clk 0:02:43.8]} 26. fxg7+ {[%clk 0:03:42]} 26... Kxg7
{[%clk 0:02:43.7]} 27. Rdf3 {[%clk 0:03:40.8]} 27... Nd2+ {[%clk 0:02:38.7]} 28.
Kc1 {[%clk 0:03:39.2]} 28... Nxf3 {[%clk 0:02:37.3]} 0-1

[Event "Live Chess"]
[Site "Chess.com"]
[Date "2024.06.02"]
[Round "-"]
[White "KeithArkell"]
[Black "Frankie_Badacsonyi"]
[Result "1/2-1/2"]
[WhiteElo "2414"]
[BlackElo "2413"]
[TimeControl "300"]
[EndTime "2:24:13 PDT"]
[Termination "Game drawn by repetition"]

1. d4 {[%clk 0:04:58]} 1... Nf6 {[%clk 0:04:58.1]} 2. Nf3 {[%clk 0:04:57.3]}
2... e6 {[%clk 0:04:57.4]} 3. c4 {[%clk 0:04:56.5]} 3... Bb4+ {[%clk 0:04:56.2]}
4. Bd2 {[%clk 0:04:55.6]} 4... c5 {[%clk 0:04:55.2]} 5. Bxb4 {[%clk 0:04:53.9]}
5... cxb4 {[%clk 0:04:55.1]} 6. a3 {[%clk 0:04:53.7]} 6... bxa3 {[%clk
0:04:49.6]} 7. Rxa3 {[%clk 0:04:52.4]} 7... O-O {[%clk 0:04:48.2]} 8. e3 {[%clk
0:04:51.9]} 8... d6 {[%clk 0:04:47.3]} 9. Nc3 {[%clk 0:04:51.1]} 9... Nc6 {[%clk
0:04:46.3]} 10. d5 {[%clk 0:04:49.9]} 10... Nb8 {[%clk 0:04:36.5]} 11. dxe6
{[%clk 0:04:48.2]} 11... Bxe6 {[%clk 0:04:34.7]} 12. Be2 {[%clk 0:04:47.4]}
12... d5 {[%clk 0:04:31.5]} 13. Nd4 {[%clk 0:04:44.9]} 13... Nc6 {[%clk
0:04:23.8]} 14. Nxe6 {[%clk 0:04:43.8]} 14... fxe6 {[%clk 0:04:23.7]} 15. O-O
{[%clk 0:04:42.6]} 15... a6 {[%clk 0:04:17.5]} 16. cxd5 {[%clk 0:04:41.7]} 16...
exd5 {[%clk 0:04:10.8]} 17. Bf3 {[%clk 0:04:40.5]} 17... d4 {[%clk 0:03:27.4]}
18. Bxc6 {[%clk 0:04:25.6]} 18... dxc3 {[%clk 0:03:03.6]} 19. Bxb7 {[%clk
0:04:05.4]} 19... Rb8 {[%clk 0:02:56.9]} 20. Qb3+ {[%clk 0:03:57.2]} 20... Rf7
{[%clk 0:02:43.9]} 21. Qxc3 {[%clk 0:03:16.1]} 21... Rfxb7 {[%clk 0:02:39.5]}
22. Rxa6 {[%clk 0:03:14.7]} 22... Rxb2 {[%clk 0:02:36.9]} 23. h3 {[%clk
0:03:11.7]} 23... R2b6 {[%clk 0:02:30.3]} 24. Rxb6 {[%clk 0:03:09.5]} 24... Qxb6
{[%clk 0:02:30.2]} 25. Rc1 {[%clk 0:03:07.1]} 25... h6 {[%clk 0:02:27.9]} 26.
Qc4+ {[%clk 0:03:05.9]} 26... Kh7 {[%clk 0:02:25.6]} 27. g4 {[%clk 0:03:05.4]}
27... Qd6 {[%clk 0:02:16.8]} 28. Qc2+ {[%clk 0:03:01.9]} 28... Kh8 {[%clk
0:02:13.9]} 29. Qf5 {[%clk 0:03:00]} 29... Rd8 {[%clk 0:01:55.8]} 30. Kg2 {[%clk
0:02:49.6]} 30... Qd2 {[%clk 0:01:48.5]} 31. Rc8 {[%clk 0:02:43]} 31... Rxc8
{[%clk 0:01:44.2]} 32. Qxc8+ {[%clk 0:02:42.9]} 32... Kh7 {[%clk 0:01:43.5]} 33.
Qf5+ {[%clk 0:02:41.9]} 33... Kh8 {[%clk 0:01:42.5]} 34. Qc8+ {[%clk 0:02:40.7]}
34... Kh7 {[%clk 0:01:41.6]} 35. Qf5+ {[%clk 0:02:39.6]} 35... Kh8 {[%clk
0:01:40.6]} 36. Qc8+ {[%clk 0:02:38.8]} 1/2-1/2

[Event "Live Chess"]
[Site "Chess.com"]
[Date "2024.06.02"]
[Round "-"]
[White "GoldsmanB"]
[Black "Trendle"]
[Result "0-1"]
[WhiteElo "1102"]
[BlackElo "2631"]
[TimeControl "300"]
[EndTime "2:24:14 PDT"]
[Termination "Trendle won by checkmate"]

1. d4 {[%clk 0:04:55.3]} 1... Nf6 {[%clk 0:04:57.8]} 2. c4 {[%clk 0:04:52.8]}
2... e6 {[%clk 0:04:55.6]} 3. Nc3 {[%clk 0:04:48.6]} 3... Bb4 {[%clk 0:04:54.2]}
4. Qc2 {[%clk 0:04:47]} 4... Nc6 {[%clk 0:04:49.4]} 5. a3 {[%clk 0:04:45.1]}
5... Nxd4 {[%clk 0:04:46.3]} 6. Qd3 {[%clk 0:04:31.2]} 6... Bxc3+ {[%clk
0:04:44.1]} 7. bxc3 {[%clk 0:04:29.4]} 7... Nb3 {[%clk 0:04:42.2]} 8. Rb1 {[%clk
0:04:25.1]} 8... Nxc1 {[%clk 0:04:40.8]} 9. Rxc1 {[%clk 0:04:25]} 9... O-O
{[%clk 0:04:39.1]} 10. e4 {[%clk 0:04:24]} 10... e5 {[%clk 0:04:34.8]} 11. Nf3
{[%clk 0:04:21.9]} 11... Qe7 {[%clk 0:04:34.4]} 12. Be2 {[%clk 0:04:16.2]} 12...
Qxa3 {[%clk 0:04:29.8]} 13. O-O {[%clk 0:04:11.7]} 13... Qc5 {[%clk 0:04:28.6]}
14. Rfd1 {[%clk 0:03:51.5]} 14... b6 {[%clk 0:04:26.3]} 15. Ng5 {[%clk
0:03:31.2]} 15... h6 {[%clk 0:04:23.1]} 16. Nh3 {[%clk 0:03:28.9]} 16... Bb7
{[%clk 0:04:22.1]} 17. Bf3 {[%clk 0:03:21.4]} 17... a5 {[%clk 0:04:21]} 18. g4
{[%clk 0:03:12.7]} 18... a4 {[%clk 0:04:03.8]} 19. g5 {[%clk 0:03:10.7]} 19...
hxg5 {[%clk 0:04:03.7]} 20. Nxg5 {[%clk 0:03:09.9]} 20... a3 {[%clk 0:04:02]}
21. Ra1 {[%clk 0:03:06.4]} 21... Ra4 {[%clk 0:03:56.2]} 22. Qc2 {[%clk
0:03:05.1]} 22... Rxc4 {[%clk 0:03:52]} 23. Rdc1 {[%clk 0:03:03.1]} 23... Ra8
{[%clk 0:03:47.5]} 24. Be2 {[%clk 0:02:57.9]} 24... Bxe4 {[%clk 0:03:43.1]} 25.
Qb3 {[%clk 0:02:48.3]} 25... Bd5 {[%clk 0:03:31.5]} 26. Bxc4 {[%clk 0:02:45.8]}
26... Bxc4 {[%clk 0:03:31.4]} 27. Qc2 {[%clk 0:02:37.8]} 27... a2 {[%clk
0:03:29.2]} 28. Ne4 {[%clk 0:02:34.5]} 28... Qc6 {[%clk 0:03:22.6]} 29. Nxf6+
{[%clk 0:02:30.1]} 29... Qxf6 {[%clk 0:03:22.5]} 30. Qd2 {[%clk 0:02:22]} 30...
Qg6+ {[%clk 0:03:20.3]} 31. Kh1 {[%clk 0:02:17.6]} 31... Qe4+ {[%clk 0:03:18.6]}
32. Kg1 {[%clk 0:02:12.9]} 32... Qg4+ {[%clk 0:03:17.1]} 33. Kh1 {[%clk
0:02:10.9]} 33... Qf3+ {[%clk 0:03:16.6]} 34. Kg1 {[%clk 0:02:09.5]} 34... Bd5
{[%clk 0:03:16.1]} 35. Kf1 {[%clk 0:01:50.4]} 35... Ra4 {[%clk 0:03:14]} 36. Qe2
{[%clk 0:01:46.1]} 36... Qh1# {[%clk 0:03:11.6]} 0-1

[Event "Live Chess"]
[Site "Chess.com"]
[Date "2024.06.02"]
[Round "-"]
[White "elis06"]
[Black "Duke_of_Bebington"]
[Result "1-0"]
[WhiteElo "2166"]
[BlackElo "1638"]
[TimeControl "300"]
[EndTime "2:24:15 PDT"]
[Termination "elis06 won by resignation"]

1. d4 {[%clk 0:04:58.4]} 1... d5 {[%clk 0:04:58.8]} 2. c4 {[%clk 0:04:57]} 2...
c6 {[%clk 0:04:57.4]} 3. Nf3 {[%clk 0:04:55]} 3... Nf6 {[%clk 0:04:55.8]} 4. Nc3
{[%clk 0:04:53.7]} 4... dxc4 {[%clk 0:04:53.2]} 5. a4 {[%clk 0:04:51.3]} 5... a6
{[%clk 0:04:45.5]} 6. a5 {[%clk 0:04:44.2]} 6... Nd5 {[%clk 0:04:38.4]} 7. e4
{[%clk 0:04:41]} 7... Nxc3 {[%clk 0:04:36.7]} 8. bxc3 {[%clk 0:04:40.2]} 8... e6
{[%clk 0:04:32.7]} 9. Bxc4 {[%clk 0:04:38.9]} 9... Be7 {[%clk 0:04:31.1]} 10.
O-O {[%clk 0:04:37.8]} 10... O-O {[%clk 0:04:30.6]} 11. Bd3 {[%clk 0:04:36]}
11... c5 {[%clk 0:04:22.5]} 12. Be3 {[%clk 0:04:32.2]} 12... cxd4 {[%clk
0:04:21.1]} 13. cxd4 {[%clk 0:04:30.9]} 13... Nc6 {[%clk 0:04:20.3]} 14. e5
{[%clk 0:04:09.1]} 14... Nxa5 {[%clk 0:04:10.7]} 15. Bc2 {[%clk 0:04:04.5]}
15... b5 {[%clk 0:03:55.4]} 16. Qd3 {[%clk 0:03:55.4]} 16... g6 {[%clk
0:03:50.8]} 17. Bh6 {[%clk 0:03:53.2]} 17... Re8 {[%clk 0:03:48.9]} 18. Nd2
{[%clk 0:03:24.9]} 18... Bb7 {[%clk 0:03:46]} 19. Ne4 {[%clk 0:03:22.9]} 19...
Nc4 {[%clk 0:03:32.3]} 20. Rfe1 {[%clk 0:03:04.5]} 20... Qb6 {[%clk 0:03:06.7]}
21. Qf3 {[%clk 0:02:51.6]} 21... Qxd4 {[%clk 0:02:41.6]} 22. Nf6+ {[%clk
0:02:47.8]} 22... Kh8 {[%clk 0:02:41.1]} 23. Qxb7 {[%clk 0:02:42.5]} 23... Nxe5
{[%clk 0:02:28.1]} 24. Nxe8 {[%clk 0:02:31.8]} 24... Rxe8 {[%clk 0:02:26.6]} 25.
Rad1 {[%clk 0:02:21.9]} 25... Qg4 {[%clk 0:02:03.6]} 26. Qxe7 {[%clk 0:01:50.8]}
1-0

[Event "Live Chess"]
[Site "Chess.com"]
[Date "2024.06.02"]
[Round "-"]
[White "bonantagulo"]
[Black "MaksymYurii"]
[Result "1-0"]
[WhiteElo "2240"]
[BlackElo "1000"]
[TimeControl "300"]
[EndTime "2:25:06 PDT"]
[Termination "bonantagulo won by resignation"]

1. d4 {[%clk 0:04:51.3]} 1... d5 {[%clk 0:04:59.9]} 2. c4 {[%clk 0:04:50]} 2...
dxc4 {[%clk 0:04:54.9]} 3. Nf3 {[%clk 0:04:45.1]} 3... Nf6 {[%clk 0:04:48.9]} 4.
e3 {[%clk 0:04:43.9]} 4... Ne4 {[%clk 0:04:43.4]} 5. Bxc4 {[%clk 0:04:42.3]}
5... c5 {[%clk 0:04:34.8]} 6. O-O {[%clk 0:04:11.9]} 6... cxd4 {[%clk
0:04:31.8]} 7. exd4 {[%clk 0:04:11.8]} 7... e6 {[%clk 0:04:13.3]} 8. Re1 {[%clk
0:04:08.3]} 8... Nd6 {[%clk 0:03:56.9]} 9. Bd3 {[%clk 0:04:03.8]} 9... Be7
{[%clk 0:03:50.8]} 10. Nc3 {[%clk 0:04:02.8]} 10... O-O {[%clk 0:03:47.6]} 11.
Qe2 {[%clk 0:03:58.1]} 11... Nc6 {[%clk 0:03:40.4]} 12. Ne4 {[%clk 0:03:51]}
12... Nf5 {[%clk 0:03:34.6]} 13. Be3 {[%clk 0:03:40]} 13... Nfxd4 {[%clk
0:03:13.1]} 14. Nxd4 {[%clk 0:03:35.8]} 14... Nxd4 {[%clk 0:03:11.8]} 15. Bxd4
{[%clk 0:03:29.8]} 15... Qxd4 {[%clk 0:03:10.4]} 16. Rad1 {[%clk 0:03:28.9]}
16... Bh4 {[%clk 0:03:04.8]} 17. Qh5 {[%clk 0:03:16.7]} 17... Bf6 {[%clk
0:02:43]} 18. Nxf6+ {[%clk 0:03:13.4]} 1-0